fUSD/lending_fUSD_20250206
["ID","MTS","AMOUNT","RATE_DAILY","PERIOD"]
[351862728,1738824653372,-500.0,0.0002,3]
[351862730,1738824653382,-533.01641176,0.0002,3]
[351862732,1738824653391,-500.0,0.0002,3]
[351862734,1738824653400,-500.0,0.0002,3]
[351862736,1738824653409,-500.0,0.0002,3]
[351862738,1738824653418,-514.35303224,0.0002,3]
[351862740,1738824653428,-509.57345765,0.0002,3]
[351862741,1738824653437,-504.38196129,0.0002,3]
[351862743,1738824653446,-500.0,0.0002,3]
[351862746,1738824653455,-500.0,0.0002,3]
[351862748,1738824653465,-546.07584197,0.0002,3]
[351862749,1738824653475,-509.18646923,0.0002,3]
[351862751,1738824653484,-500.0,0.0002,3]
[351862753,1738824653494,-500.0,0.0002,3]
[351862755,1738824653503,-500.0,0.0002,3]
[351862758,1738824653513,-500.0,0.0002,3]
[351862759,1738824653523,-525.01,0.0002,3]
[351862761,1738824653533,-585.02162552,0.0002,3]
[351862763,1738824653543,-588.42806664,0.0002,3]
[351862765,1738824653552,-525.01,0.0002,3]
[351862767,1738824653562,-503.739516,0.0002,30]
[351862769,1738824653571,-525.01,0.0002,3]
[351862771,1738824653580,-500.0,0.0002,3]
[351862773,1738824653590,-525.01,0.0002,3]
[351862775,1738824653599,-525.01,0.0002,3]
[351862777,1738824653609,-503.07587961,0.0002,3]
[351862779,1738824653619,-525.01,0.0002,3]
[351862781,1738824653629,-525.01,0.0002,3]
[351862783,1738824653639,-500.58993849,0.0002,3]
[351862785,1738824653649,-525.01,0.0002,3]
[351862788,1738824653662,-500.84408562,0.0002,3]
[351862789,1738824653672,-500.0,0.0002,3]
[351862791,1738824653682,-504.42114542,0.0002,3]
[351862793,1738824653692,-500.0,0.0002,3]
[351862795,1738824653702,-502.11193463,0.0002,3]
[351862797,1738824653711,-500.0,0.0002,3]
[351862799,1738824653721,-500.0,0.0002,3]
[351862801,1738824653733,-500.0,0.0002,3]
[351862803,1738824653743,-590.47330721,0.0002,3]
[351862805,1738824653752,-500.59425366,0.0002,3]
[351862807,1738824653762,-500.0,0.0002,3]
[351862809,1738824653771,-504.04020935,0.0002,3]
[351862811,1738824653783,-526.86830513,0.0002,3]
[351862813,1738824653792,-500.0,0.0002,3]
[351862815,1738824653802,-500.0,0.0002,3]
[351862816,1738824653811,-505.32240731,0.0002,3]
[351862818,1738824653821,-500.0,0.0002,3]
[351862820,1738824653830,-500.0,0.0002,3]
[351862822,1738824653841,-376.17297477,0.0002,3]
[351862824,1738824653851,-502.55152291,0.0002,3]
[351862826,1738824653861,-500.0,0.0002,3]
[351862828,1738824653870,-500.0,0.0002,3]
[351862830,1738824653879,-500.84114335,0.0002,3]
[351862832,1738824653889,-503.47444437,0.0002,3]
[351862834,1738824653899,-500.0,0.0002,3]
[351862836,1738824653908,-611.40356161,0.0002,3]
[351862838,1738824653918,-500.0,0.0002,3]
[351862840,1738824653927,-504.25634877,0.0002,3]
[351862842,1738824653938,-502.51348251,0.0002,3]
[351862844,1738824653947,-501.46218133,0.0002,3]
[351862846,1738824653957,-500.0,0.0002,3]
[351862848,1738824653967,-500.0,0.0002,3]
[351862850,1738824653976,-500.0,0.0002,3]
[351862852,1738824653986,-502.32800336,0.0002,3]
[351862854,1738824653995,-513.69982768,0.0002,3]
[351862856,1738824654005,-500.0,0.0002,3]
[351862858,1738824654014,-500.0,0.0002,3]
[351862860,1738824654023,-646.53112248,0.0002,3]
[351862862,1738824654034,-502.85700997,0.0002,3]
[351862864,1738824654044,-500.31522589,0.0002,3]
[351862866,1738824654054,-500.0,0.0002,3]
[351862868,1738824654063,-502.66187996,0.0002,3]
[351862870,1738824654074,-366.4066722,0.0002,3]
[351862872,1738824654083,-607.41160641,0.0002,3]
[351862874,1738824654093,-500.23332432,0.0002,3]
[351862876,1738824654103,-500.0,0.0002,3]
[351862878,1738824654112,-500.0,0.0002,3]
[351862880,1738824654122,-500.0,0.0002,3]
[351862882,1738824654132,-501.14672074,0.0002,3]
[351862884,1738824654142,-501.57299846,0.0002,3]
[351862886,1738824654151,-500.0,0.0002,3]
[351862888,1738824654160,-503.18814578,0.0002,3]
[351862890,1738824654170,-500.0,0.0002,3]
[351862892,1738824654179,-217.54009035,0.0002,3]
[351862894,1738824654189,-500.0,0.0002,3]
[351862896,1738824654198,-500.0,0.0002,3]
[351862898,1738824654207,-507.48007249,0.0002,3]
[351862900,1738824654217,-500.0,0.0002,3]
[351862902,1738824654226,-500.0,0.0002,3]
[351862904,1738824654235,-500.0,0.0002,3]
[351862906,1738824654245,-503.25156606,0.0002,3]
[351862908,1738824654254,-500.0,0.0002,3]
[351862910,1738824654264,-501.86294938,0.0002,3]
[351862912,1738824654273,-500.0,0.0002,3]
[351862914,1738824654283,-506.90741362,0.0002,3]
[351862916,1738824654292,-582.34205874,0.0002,3]
[351862918,1738824654302,-500.0,0.0002,3]
[351862920,1738824654312,-500.0,0.0002,3]
[351862922,1738824654321,-500.0,0.0002,3]
[351862924,1738824654332,-3889.77989785,0.0002,3]
[351862926,1738824654342,-500.0,0.0002,3]
[351862928,1738824654352,-500.0,0.0002,3]
[351862930,1738824654362,-500.0,0.0002,3]
[351862935,1738824654431,-500.0,0.0002,3]
[351862937,1738824654442,-502.5544929,0.0002,3]
[351862939,1738824654452,-502.53289331,0.0002,3]
[351862941,1738824654462,-500.0,0.0002,3]
[351862943,1738824654471,-503.6534978,0.0002,3]
[351862945,1738824654481,-204.67117003,0.0002,3]
[351862947,1738824654491,-500.0,0.0002,3]
[351862949,1738824654501,-501.68518927,0.0002,3]
[351862951,1738824654510,-500.0,0.0002,3]
[351862953,1738824654520,-503.88026216,0.0002,3]
[351862955,1738824654531,-500.0,0.0002,3]
[351862957,1738824654541,-472.02029543,0.0002,3]
[351862959,1738824654551,-500.0,0.0002,3]
[351862961,1738824654560,-500.0,0.0002,3]
[351862963,1738824654569,-500.0,0.0002,3]
[351862965,1738824654579,-500.0,0.0002,3]
[351862967,1738824654588,-617.19318841,0.0002,3]
[351862969,1738824654597,-500.5612391,0.0002,3]
[351862971,1738824654607,-501.85005926,0.0002,3]
[351862973,1738824654616,-500.45869276,0.0002,3]
[351862975,1738824654625,-501.60140474,0.0002,3]
[351862977,1738824654635,-500.46887542,0.0002,3]
[351862979,1738824654645,-500.0,0.0002,3]
[351862981,1738824654658,-500.0,0.0002,3]
[351862983,1738824654667,-500.0,0.0002,3]
[351862985,1738824654696,-463.04060625,0.0002,3]
[351862986,1738824654706,-500.0,0.0002,3]
[351862988,1738824654716,-500.0,0.0002,3]
[351862991,1738824654726,-508.37471371,0.0002,3]
[351862993,1738824654737,-500.0,0.0002,3]
[351862995,1738824654747,-500.0,0.0002,3]
[351862997,1738824654756,-501.30485934,0.0002,3]
[351862999,1738824654765,-500.0,0.0002,3]
[351863001,1738824654775,-501.12504612,0.0002,3]
[351863003,1738824654787,-500.0,0.0002,3]
[351863005,1738824654796,-501.7306802,0.0002,3]
[351863007,1738824654806,-500.0,0.0002,3]
[351863009,1738824654815,-500.0,0.0002,3]
[351863011,1738824654825,-500.0,0.0002,3]
[351863013,1738824654834,-503.60215071,0.0002,3]
[351863015,1738824654844,-500.94869826,0.0002,3]
[351863017,1738824654853,-500.0,0.0002,3]
[351863019,1738824654863,-500.0,0.0002,3]
[351863021,1738824654873,-500.0,0.0002,3]
[351863023,1738824654882,-500.0,0.0002,3]
[351863025,1738824654892,-500.3762799,0.0002,3]
[351863027,1738824654901,-502.28757428,0.0002,2]
[351863029,1738824654910,-500.0,0.0002,3]
[351863031,1738824654920,-506.05437807,0.0002,3]
[351863032,1738824654929,-500.0,0.0002,3]
[351863034,1738824654939,-504.18766811,0.0002,3]
[351863036,1738824654949,-500.0,0.0002,3]
[351863038,1738824654959,-505.02261273,0.0002,3]
[351863040,1738824654968,-500.62881868,0.0002,3]
[351863042,1738824654978,-637.64336842,0.0002,3]
[351863044,1738824654988,-500.0,0.0002,3]
[351863046,1738824654998,-500.0,0.0002,3]
[351863048,1738824655008,-498.49823629,0.0002,3]
[351863051,1738824655018,-500.0,0.0002,3]
[351863052,1738824655028,-501.66708305,0.0002,3]
[351863054,1738824655038,-500.0,0.0002,3]
[351863057,1738824655048,-500.0,0.0002,3]
[351863059,1738824655057,-500.0,0.0002,3]
[351863061,1738824655068,-502.765203,0.0002,3]
[351863063,1738824655077,-553.18150177,0.0002,3]
[351863065,1738824655087,-500.0,0.0002,3]
[351863067,1738824655096,-500.0,0.0002,3]
[351863069,1738824655105,-502.89758734,0.0002,3]
[351863071,1738824655115,-500.0,0.0002,3]
[351863073,1738824655124,-500.0,0.0002,3]
[351863075,1738824655133,-500.0,0.0002,3]
[351863077,1738824655143,-500.0,0.0002,3]
[351863079,1738824655153,-503.19489683,0.0002,3]
[351863081,1738824655163,-500.0,0.0002,3]
[351863083,1738824655172,-500.0,0.0002,3]
[351863085,1738824655182,-501.11601907,0.0002,3]
[351863087,1738824655191,-500.0,0.0002,3]
[351863089,1738824655201,-500.0,0.0002,3]
[351863091,1738824655211,-500.0,0.0002,3]
[351863093,1738824655220,-500.0,0.0002,3]
[351863095,1738824655229,-500.0,0.0002,3]
[351863097,1738824655239,-500.0,0.0002,3]
[351863099,1738824655247,-500.0,0.0002,3]
[351863101,1738824655258,-500.0,0.0002,3]
[351863103,1738824655267,-500.0,0.0002,3]
[351863105,1738824655277,-500.61945609,0.0002,3]
[351863107,1738824655288,-500.0,0.0002,3]
[351863109,1738824655298,-500.0,0.0002,3]
[351863111,1738824655307,-228.30619372,0.0002,3]
[351863113,1738824655317,-500.0,0.0002,3]
[351863115,1738824655327,-592.29027952,0.0002,3]
[351863117,1738824655337,-500.0,0.0002,3]
[351863119,1738824655347,-500.0,0.0002,3]
[351863121,1738824655356,-500.0,0.0002,3]
[351863123,1738824655365,-500.0,0.0002,3]
[351863125,1738824655375,-500.0,0.0002,3]
[351863127,1738824655384,-501.33909692,0.0002,3]
[351863135,1738824655452,-585.58996055,0.0002,3]
[351863137,1738824655461,-500.0,0.0002,3]
[351863139,1738824655471,-501.73203953,0.0002,3]
[351863141,1738824655481,-178.54950132,0.0002,3]
[351863143,1738824655490,-500.52715567,0.0002,3]
[351863145,1738824655499,-501.22184645,0.0002,3]
[351863147,1738824655508,-500.0,0.0002,3]
[351863149,1738824655517,-500.0,0.0002,3]
[351863151,1738824655526,-506.44102574,0.0002,3]
[351863153,1738824655537,-500.0,0.0002,3]
[351863155,1738824655546,-500.0,0.0002,3]
[351863157,1738824655556,-500.0,0.0002,3]
[351863159,1738824655566,-623.26927885,0.0002,3]
[351863161,1738824655575,-500.0,0.0002,3]
[351863163,1738824655584,-500.0,0.0002,3]
[351863165,1738824655594,-503.29730655,0.0002,3]
[351863167,1738824655603,-512.3361428,0.0002,3]
[351863169,1738824655612,-598.70843512,0.0002,3]
[351863171,1738824655623,-500.0,0.0002,3]
[351863173,1738824655632,-602.44696206,0.0002,3]
[351863175,1738824655641,-500.0,0.0002,3]
[351863177,1738824655651,-541.07278664,0.0002,3]
[351863179,1738824655662,-500.38908533,0.0002,3]
[351863181,1738824655671,-500.0,0.0002,3]
[351863183,1738824655681,-500.0,0.0002,3]
[351863185,1738824655690,-500.0,0.0002,3]
[351863187,1738824655701,-500.0,0.0002,3]
[351863189,1738824655711,-500.0,0.0002,3]
[351863191,1738824655719,-500.0,0.0002,3]
[351863193,1738824655728,-502.08477746,0.0002,3]
[351863195,1738824655739,-502.94547709,0.0002,3]
[351863197,1738824655748,-500.0,0.0002,3]
[351863199,1738824655758,-505.0097292,0.0002,3]
[351863200,1738824655768,-500.0,0.0002,3]
[351863202,1738824655778,-500.4673925,0.0002,3]
[351863204,1738824655789,-281.96531421,0.0002,3]
[351863206,1738824655798,-500.0,0.0002,3]
[351863208,1738824655808,-500.0,0.0002,3]
[351863210,1738824655818,-500.0,0.0002,3]
[351863212,1738824655828,-504.48734126,0.0002,3]
[351863215,1738824655841,-500.0,0.0002,3]
[351863217,1738824655851,-513.51853119,0.0002,3]
[351863218,1738824655860,-505.98175847,0.0002,3]
[351863220,1738824655870,-501.27669962,0.0002,3]
[351863222,1738824655879,-500.0,0.0002,3]
[351863224,1738824655889,-502.238208,0.0002,3]
[351863226,1738824655899,-501.04334562,0.0002,3]
[351863228,1738824655908,-500.0,0.0002,3]
[351863230,1738824655918,-500.0,0.0002,3]
[351863232,1738824655927,-500.0,0.0002,3]
[351863234,1738824655936,-500.0,0.0002,3]
[351863236,1738824655946,-510.5736665,0.0002,3]
[351863238,1738824655955,-500.0,0.0002,3]
[351863240,1738824655964,-500.0,0.0002,3]
[351863242,1738824655974,-500.0,0.0002,3]
[351863244,1738824655983,-500.0,0.0002,3]
[351863246,1738824655992,-500.0,0.0002,3]
[351863248,1738824656001,-504.74793016,0.0002,3]
[351863250,1738824656011,-269.45193561,0.0002,3]
[351863252,1738824656020,-500.0,0.0002,3]
[351863254,1738824656030,-500.0,0.0002,3]
[351863256,1738824656039,-500.0,0.0002,3]
[351863258,1738824656048,-500.0,0.0002,3]
[351863260,1738824656059,-500.0,0.0002,3]
[351863262,1738824656068,-506.91941209,0.0002,3]
[351863264,1738824656078,-304.6851604,0.0002,3]
[351863265,1738824656087,-500.0,0.0002,3]
[351863267,1738824656096,-500.0,0.0002,3]
[351863269,1738824656105,-500.0,0.0002,3]
[351863271,1738824656115,-500.0,0.0002,3]
[351863273,1738824656124,-500.0,0.0002,3]
[351863275,1738824656133,-500.0,0.0002,3]
[351863277,1738824656142,-500.0,0.0002,3]
[351863279,1738824656152,-500.0,0.0002,3]
[351863281,1738824656162,-500.0,0.0002,3]
[351863283,1738824656171,-510.38415934,0.0002,3]
[351863285,1738824656180,-500.0,0.0002,3]
[351863287,1738824656190,-500.0,0.0002,3]
[351863289,1738824656199,-500.0,0.0002,3]
[351863291,1738824656209,-384.3956382,0.0002,3]
[351863293,1738824656218,-500.0,0.0002,3]
[351863294,1738824656228,-500.0,0.0002,3]
[351863296,1738824656237,-500.0,0.0002,3]
[351863298,1738824656247,-500.0,0.0002,3]
[351863300,1738824656257,-503.52896214,0.0002,3]
[351863302,1738824656267,-500.0,0.0002,3]
[351863304,1738824656276,-501.88831107,0.0002,3]
[351863306,1738824656289,-547.73270884,0.0002,3]
[351863308,1738824656298,-500.0,0.0002,2]
[351863310,1738824656307,-500.0,0.0002,2]
[351863312,1738824656317,-500.0,0.0002,2]
[351863314,1738824656327,-500.0,0.0002,2]
[351863316,1738824656337,-500.84232981,0.0002,3]
[351863318,1738824656347,-500.0,0.0002,2]
[351863320,1738824656357,-500.0,0.0002,2]
[351863322,1738824656367,-528.49426867,0.0002,2]
[351863324,1738824656376,-500.0,0.0002,3]
[351863326,1738824656386,-494.46490063,0.0002,3]
[351863328,1738824656396,-500.0,0.0002,3]
[351863330,1738824656406,-500.0,0.0002,3]
[351863332,1738824656416,-1000.0,0.0002,3]
[351863334,1738824656426,-500.0,0.0002,3]
[351863336,1738824656436,-500.0,0.0002,3]
[351863338,1738824656446,-1000.0,0.0002,3]
[351863340,1738824656457,-500.0,0.0002,3]
[351863342,1738824656467,-500.0,0.0002,3]
[351863344,1738824656477,-1020.80537368,0.0002,3]
[351863346,1738824656486,-641.6581144,0.0002,3]
[351863348,1738824656497,-500.0,0.0002,3]
[351863350,1738824656507,-500.0,0.0002,3]
[351863352,1738824656520,-500.85933537,0.0002,3]
[351863354,1738824656532,-500.0,0.0002,3]
[351863356,1738824656541,-479.56322259,0.0002,3]
[351863358,1738824656551,-500.0,0.0002,3]
[351863360,1738824656561,-500.0,0.0002,3]
[351863362,1738824656571,-503.6412976,0.0002,3]
[351863364,1738824656582,-500.0,0.0002,3]
[351863366,1738824656592,-496.61646939,0.0002,3]
[351863368,1738824656602,-500.0,0.0002,3]
[351863370,1738824656612,-500.43738507,0.0002,3]
[351863372,1738824656622,-500.39521021,0.0002,3]
[351863374,1738824656632,-500.0,0.0002,3]
[351863376,1738824656642,-500.0,0.0002,3]
[351863378,1738824656652,-501.77827582,0.0002,3]
[351863380,1738824656665,-500.0,0.0002,3]
[351863382,1738824656675,-500.0,0.0002,3]
[351863384,1738824656685,-500.0,0.0002,3]
[351863386,1738824656695,-500.0,0.0002,3]
[351863388,1738824656705,-500.0,0.0002,3]
[351863390,1738824656715,-500.0,0.0002,3]
[351863392,1738824656725,-503.09444523,0.0002,3]
[351863394,1738824656736,-500.0,0.0002,3]
[351863396,1738824656747,-500.0,0.0002,3]
[351863398,1738824656756,-500.0,0.0002,3]
[351863400,1738824656766,-500.0,0.0002,3]
[351863402,1738824656775,-500.0,0.0002,3]
[351863404,1738824656786,-500.0,0.0002,3]
[351863406,1738824656795,-509.50529305,0.0002,3]
[351863408,1738824656805,-500.0,0.0002,3]
[351863410,1738824656815,-354.42061458,0.0002,3]
[351863412,1738824656825,-506.55745759,0.0002,3]
[351863414,1738824656834,-502.77640038,0.0002,3]
[351863416,1738824656845,-500.0,0.0002,3]
[351863418,1738824656855,-507.02498623,0.0002,3]
[351863420,1738824656865,-500.0,0.0002,3]
[351863422,1738824656876,-505.46982724,0.0002,3]
[351863424,1738824656885,-500.0,0.0002,3]
[351863426,1738824656895,-500.0,0.0002,3]
[351863428,1738824656905,-558.77865449,0.0002,3]
[351863430,1738824656915,-500.0,0.0002,3]
[351863432,1738824656925,-500.0,0.0002,3]
[351863434,1738824656934,-500.0,0.0002,3]
[351863435,1738824656943,-500.0,0.0002,3]
[351863437,1738824656953,-500.0,0.0002,3]
[351863440,1738824656963,-500.0,0.0002,3]
[351863442,1738824656977,-297.21452337,0.0002,3]
[351863444,1738824656987,-500.0,0.0002,3]
[351863446,1738824656996,-500.0,0.0002,3]
[351863448,1738824657006,-500.0,0.0002,3]
[351863450,1738824657016,-500.0,0.0002,3]
[351863452,1738824657027,-500.67572472,0.0002,3]
[351863454,1738824657038,-500.0,0.0002,3]
[351863456,1738824657047,-500.0,0.0002,3]
[351863458,1738824657056,-501.89815347,0.0002,3]
[351863460,1738824657066,-500.60205702,0.0002,3]
[351863461,1738824657076,-500.0,0.0002,3]
[351863463,1738824657085,-500.0,0.0002,3]
[351863465,1738824657095,-242.87518274,0.0002,3]
[351863468,1738824657105,-500.0,0.0002,3]
[351863469,1738824657115,-545.38301978,0.0002,3]
[351863472,1738824657125,-500.0,0.0002,3]
[351863474,1738824657135,-500.0,0.0002,3]
[351863475,1738824657145,-500.0,0.0002,3]
[351863477,1738824657154,-500.0,0.0002,3]
[351863479,1738824657164,-509.76629156,0.0002,3]
[351863481,1738824657174,-500.0,0.0002,3]
[351863483,1738824657183,-500.0,0.0002,3]
[351863485,1738824657193,-500.0,0.0002,3]
[351863487,1738824657202,-500.0,0.0002,3]
[351863489,1738824657212,-500.0,0.0002,3]
[351863491,1738824657222,-500.0,0.0002,3]
[351863493,1738824657234,-500.0,0.0002,3]
[351863495,1738824657244,-500.0,0.0002,3]
[351863497,1738824657257,-500.0,0.0002,3]
[351863499,1738824657267,-502.23192998,0.0002,3]
[351863501,1738824657277,-500.0,0.0002,3]
[351863503,1738824657288,-594.59161614,0.0002,3]
[351863505,1738824657297,-500.0,0.0002,3]
[351863507,1738824657307,-502.63562985,0.0002,3]
[351863509,1738824657317,-500.0,0.0002,3]
[351863511,1738824657327,-500.0,0.0002,3]
[351863513,1738824657336,-500.0,0.0002,3]
[351863515,1738824657346,-500.0,0.0002,3]
[351863517,1738824657356,-501.22248651,0.0002,3]
[351863519,1738824657366,-4325.34,0.0002,3]
[351863521,1738824657376,-500.0,0.0002,3]
[351863523,1738824657386,-501.04732386,0.0002,3]
[351863525,1738824657396,-4325.34,0.0002,3]
[351863527,1738824657406,-537.05212649,0.0002,3]
[351863529,1738824657416,-4325.34,0.0002,3]
[351863531,1738824657425,-4325.34,0.0002,3]
[351863533,1738824657435,-504.23554622,0.0002,3]
[351863535,1738824657444,-4325.34,0.0002,3]
[351863537,1738824657455,-4325.34,0.0002,3]
[351863539,1738824657464,-4325.34,0.0002,3]
[351863541,1738824657474,-4325.34,0.0002,3]
[351863543,1738824657484,-4325.34,0.0002,3]
[351863545,1738824657494,-500.0,0.0002,3]
[351863547,1738824657503,-500.79898822,0.0002,3]
[351863549,1738824657513,-500.0,0.0002,3]
[351863551,1738824657523,-303.8794758,0.0002,3]
[351863560,1738824657532,-501.77783796,0.0002,3]
[351863563,1738824657624,-500.0,0.0002,3]
[351863565,1738824657634,-500.0,0.0002,3]
[351863567,1738824657643,-500.0,0.0002,3]
[351863569,1738824657652,-503.3407849,0.0002,3]
[351863571,1738824657665,-502.10615212,0.0002,3]
[351863573,1738824657674,-500.0,0.0002,3]
[351863574,1738824657683,-500.0,0.0002,3]
[351863576,1738824657694,-500.0,0.0002,3]
[351863578,1738824657703,-500.0,0.0002,3]
[351863580,1738824657712,-500.0,0.0002,3]
[351863582,1738824657722,-500.0,0.0002,3]
[351863584,1738824657731,-500.0,0.0002,3]
[351863586,1738824657742,-500.0,0.0002,3]
[351863588,1738824657752,-500.0,0.0002,3]
[351863590,1738824657761,-500.0,0.0002,3]
[351863592,1738824657770,-500.0,0.0002,3]
[351863594,1738824657779,-501.15505522,0.0002,3]
[351863596,1738824657789,-500.0,0.0002,3]
[351863598,1738824657799,-500.0,0.0002,3]
[351863600,1738824657808,-500.0,0.0002,3]
[351863602,1738824657818,-500.0,0.0002,3]
[351863603,1738824657827,-500.0,0.0002,3]
[351863604,1738824657839,-500.0,0.0002,3]
[351863605,1738824657850,-500.0,0.0002,3]
[351863606,1738824657859,-500.0,0.0002,3]
[351863607,1738824657869,-500.0,0.0002,3]
[351863608,1738824657878,-500.0,0.0002,3]
[351863609,1738824657888,-500.0,0.0002,3]
[351863610,1738824657897,-500.0,0.0002,3]
[351863611,1738824657907,-500.0,0.0002,3]
[351863612,1738824657917,-500.0,0.0002,3]
[351863613,1738824657926,-500.0,0.0002,3]
[351863614,1738824657936,-500.43387515,0.0002,3]
[351863615,1738824657946,-170.65611079,0.0002,3]
[351863616,1738824657956,-253.51600715,0.0002,3]
[351863618,1738824657966,-500.0,0.0002,3]
[351863620,1738824657976,-500.0,0.0002,3]
[351863622,1738824657986,-504.78420718,0.0002,3]
[351863624,1738824657995,-500.0,0.0002,3]
[351863626,1738824658005,-503.4832798,0.0002,3]
[351863628,1738824658015,-500.0,0.0002,3]
[351863630,1738824658025,-500.0,0.0002,3]
[351863632,1738824658035,-500.0,0.0002,3]
[351863634,1738824658044,-500.0,0.0002,3]
[351863636,1738824658054,-502.77169491,0.0002,3]
[351863639,1738824658064,-500.0,0.0002,3]
[351863640,1738824658074,-500.0,0.0002,3]
[351863643,1738824658084,-500.0,0.0002,3]
[351863645,1738824658093,-500.0,0.0002,3]
[351863647,1738824658103,-500.0,0.0002,3]
[351863649,1738824658112,-502.48378644,0.0002,3]
[351863650,1738824658122,-500.0,0.0002,3]
[351863652,1738824658131,-500.0,0.0002,3]
[351863654,1738824658140,-500.0,0.0002,3]
[351863656,1738824658150,-500.0,0.0002,3]
[351863658,1738824658159,-514.10192698,0.0002,3]
[351863660,1738824658169,-500.0,0.0002,3]
[351863662,1738824658178,-589.60158088,0.0002,3]
[351863664,1738824658187,-556.22177898,0.0002,3]
[351863666,1738824658197,-438.11110905,0.0002,3]
[351863668,1738824658207,-500.0,0.0002,3]
[351863670,1738824658216,-500.0,0.0002,3]
[351863672,1738824658225,-500.0,0.0002,3]
[351863674,1738824658234,-500.0,0.0002,3]
[351863676,1738824658243,-575.25905798,0.0002,3]
[351863678,1738824658252,-500.0,0.0002,3]
[351863680,1738824658262,-500.0,0.0002,3]
[351863682,1738824658271,-500.67608616,0.0002,3]
[351863684,1738824658281,-500.0,0.0002,3]
[351863686,1738824658290,-509.22914018,0.0002,3]
[351863688,1738824658299,-500.0,0.0002,3]
[351863690,1738824658308,-500.0,0.0002,3]
[351863692,1738824658318,-503.31059679,0.0002,3]
[351863694,1738824658328,-502.00969819,0.0002,3]
[351863696,1738824658337,-500.0,0.0002,3]
[351863698,1738824658347,-500.0,0.0002,3]
[351863700,1738824658356,-500.0,0.0002,3]
[351863702,1738824658365,-500.0,0.0002,3]
[351863704,1738824658374,-500.0,0.0002,3]
[351863706,1738824658384,-500.0,0.0002,3]
[351863708,1738824658394,-500.0,0.0002,3]
[351863710,1738824658403,-501.73506172,0.0002,3]
[351863712,1738824658413,-500.0,0.0002,3]
[351863714,1738824658422,-500.0,0.0002,3]
[351863716,1738824658431,-509.2847278,0.0002,3]
[351863718,1738824658440,-500.0,0.0002,3]
[351863720,1738824658449,-500.0,0.0002,3]
[351863722,1738824658459,-500.0,0.0002,3]